bitfinex/quotes_ETHUSD_20250708
["timestamp","ask_amount","ask_price","bid_price","bid_amount"]
[1751957507808,0.70539823,2565.6,2565.5,0.1954]
[1751957508494,0.70539823,2565.6,2565.5,4.09327565]
[1751957509166,0.70539823,2565.6,2565.5,0.1954]
[1751957509366,0.70539823,2565.6,2565.5,0.001]
[1751957510099,0.70539823,2565.6,2565.5,3.89887565]
[1751957510322,0.002,2565.6,2565.5,3.89887565]
[1751957511106,0.36705952,2565.6,2565.5,3.89887565]
[1751957511379,0.002,2565.6,2565.5,0.001]
[1751957511579,0.002,2565.6,2565.5,3.89887565]
[1751957512098,0.002,2565.6,2565.5,0.001]
[1751957514277,0.002,2565.6,2565.5,3.89887565]
[1751957521924,0.002,2565.6,2565.5,0.001]
[1751957522287,0.002,2565.6,2565.5,5.933]
[1751957522491,0.36696043,2565.6,2565.5,5.933]
[1751957525125,0.36705896,2565.6,2565.5,5.933]
[1751957525752,0.36705896,2565.6,2565.5,9.83087565]
[1751957526327,0.36712806,2565.6,2565.5,9.83087565]
[1751957530358,0.69767071,2565.6,2565.5,9.83087565]
[1751957531063,0.69767046,2565.6,2565.5,9.83087565]
[1751957533365,0.69842744,2565.6,2565.5,9.83087565]
[1751957538366,2.10196324,2565.6,2565.5,5.933]
[1751957538975,0.69842744,2565.6,2565.5,5.933]
[1751957540175,0.69842744,2565.6,2565.5,10.62807565]
[1751957545574,0.69622001,2565.6,2565.5,10.62807565]
[1751957547461,0.36776816,2565.6,2565.5,10.62807565]
[1751957547802,0.69539635,2565.6,2565.5,10.62807565]
[1751957547952,0.69539635,2565.6,2565.5,9.83087565]
[1751957548499,0.36776816,2565.6,2565.5,9.83087565]
[1751957548654,0.6953921,2565.6,2565.5,9.83087565]
[1751957548852,0.36776816,2565.6,2565.5,9.83087565]
[1751957552396,0.36776816,2565.6,2565.5,10.02527565]
[1751957554276,0.002,2565.6,2565.5,10.02527565]
[1751957554500,0.36772029,2565.6,2565.5,10.02527565]
[1751957554700,0.002,2565.6,2565.5,10.02527565]
[1751957554902,0.36772029,2565.6,2565.5,10.02527565]
[1751957557207,0.36773026,2565.6,2565.5,10.02527565]
[1751957560112,0.69473534,2565.6,2565.5,10.02527565]
[1751957564510,0.69485294,2565.6,2565.5,10.02527565]
[1751957566929,0.36773949,2565.6,2565.5,10.02527565]
[1751957567229,0.69484305,2565.6,2565.5,10.02527565]
[1751957567525,0.36773949,2565.6,2565.5,10.02527565]
[1751957570415,0.36777102,2565.6,2565.5,10.02527565]
[1751957570627,0.69496402,2565.6,2565.5,10.02527565]
[1751957571631,0.69496402,2565.6,2565.5,10.81147565]
[1751957571791,0.36777102,2565.6,2565.5,10.81147565]
[1751957572205,0.69496566,2565.6,2565.5,10.81147565]
[1751957572403,0.69496745,2565.6,2565.5,10.81147565]
[1751957572728,0.36777102,2565.6,2565.5,10.81147565]
[1751957573126,0.69497297,2565.6,2565.5,10.81147565]
[1751957577108,0.36777102,2565.6,2565.5,15.48380384]
[1751957577315,0.36777102,2565.6,2565.5,17.42198373]
[1751957578222,0.002,2565.6,2565.5,17.97198373]
[1751957579147,0.002,2565.6,2565.5,7.36765554]
[1751957579348,0.002,2565.6,2565.5,10.02027565]
[1751957586482,0.002,2565.6,2565.1,5.84010231]
[1751957586483,10.0,2565.5,2564.4,3.90045636]
[1751957586678,16.23802727,2565.1,2564.4,0.001]
[1751957586852,0.829,2564.8,2564.4,0.001]
[1751957587052,0.36546837,2564.7,2564.4,0.001]
[1751957587266,0.35562747,2564.6,2564.4,0.001]
[1751957587467,0.72109584,2564.6,2564.4,0.001]
[1751957587668,2.12477872,2564.6,2564.4,0.001]
[1751957587847,0.72109584,2564.6,2564.4,0.001]
[1751957589490,0.72988928,2564.6,2564.4,0.001]
[1751957590359,0.66132888,2564.6,2564.4,0.001]
[1751957590985,0.36546837,2564.6,2564.4,0.001]
[1751957591372,0.829,2564.8,2564.4,0.001]
[1751957591583,0.7281369,2564.7,2564.4,0.001]
[1751957591770,0.829,2564.8,2564.4,0.001]
[1751957591971,0.72813672,2564.7,2564.4,0.001]
[1751957592158,0.829,2564.8,2564.4,0.001]
[1751957592363,1.20085319,2564.7,2564.4,0.001]
[1751957592607,0.47277967,2564.7,2564.4,0.001]
[1751957592808,0.829,2564.8,2564.4,0.001]
[1751957592965,0.72786706,2564.7,2564.4,0.001]
[1751957593172,0.829,2564.8,2564.4,0.001]
[1751957593397,0.72780277,2564.7,2564.4,0.001]
[1751957593598,0.829,2564.8,2564.4,0.001]
[1751957593771,0.7276387,2564.7,2564.4,0.001]
[1751957593969,0.829,2564.8,2564.4,0.001]
[1751957594208,0.72763864,2564.7,2564.4,0.001]
[1751957594397,0.829,2564.8,2564.4,0.001]
[1751957594599,0.83650179,2564.7,2564.4,0.001]
[1751957594873,0.4727791,2564.7,2564.4,0.001]
[1751957595599,0.829,2564.8,2564.4,0.001]
[1751957596383,0.1944,2564.7,2564.5,0.001]
[1751957599281,5.43155926,2564.6,2564.5,0.001]
[1751957599604,12.66803435,2564.6,2564.5,0.001]
[1751957599789,22.66803435,2564.6,2564.5,0.001]
[1751957601100,24.42263795,2564.6,2564.5,0.001]
[1751957601719,22.66803435,2564.6,2564.5,1e-08]
[1751957601886,26.66790445,2564.6,2564.5,1e-08]
[1751957602309,28.99395417,2564.6,2564.5,1e-08]
[1751957603023,26.66790445,2564.6,2564.5,1e-08]
[1751957603204,28.99288954,2564.6,2564.5,1e-08]
[1751957605689,26.66790445,2564.6,2564.5,1e-08]
[1751957606121,38.52790445,2564.6,2564.5,1e-08]
[1751957607101,40.85288954,2564.6,2564.5,1e-08]
[1751957609204,38.52790445,2564.6,2564.5,1e-08]
[1751957609401,40.83558357,2564.6,2564.5,1e-08]
[1751957609607,39.07790445,2564.6,2564.5,1e-08]
[1751957609805,15.21859559,2564.5,2564.4,0.001]
[1751957610021,22.78875419,2564.5,2564.4,0.001]
[1751957610509,13.89969972,2564.3,2564.2,0.0110377]
[1751957610708,3.90046025,2563.8,2563.7,0.0426927]
[1751957610930,34.50032116,2563.8,2563.7,0.0426927]
[1751957612311,35.34965915,2563.8,2563.7,0.0426927]
[1751957612519,35.88320129,2563.8,2563.7,0.0426927]
[1751957612725,36.24626383,2563.8,2563.7,0.0426927]
[1751957612929,40.24626383,2563.8,2563.7,0.0426927]
[1751957613137,42.56858027,2563.8,2563.7,0.0426927]
[1751957615435,42.56921057,2563.8,2563.7,0.0426927]
[1751957616143,40.24689413,2563.8,2563.7,0.0426927]
[1751957617035,40.24689413,2563.8,2563.2,0.0426927]
[1751957617036,3.90092327,2563.5,2562.8,4.28108541]
[1751957617237,23.98739358,2563.4,2562.8,4.28108541]
[1751957617409,2.12339358,2563.3,2562.9,3.90182846]
[1751957617742,2.12339358,2563.3,2562.8,4.28106209]
[1751957617743,12.5900208,2563.2,2562.8,4.28106209]
[1751957618039,0.72701562,2563.1,2562.8,4.28106209]
[1751957618234,0.3635104,2563.0,2562.8,4.28106209]
[1751957618408,0.3635104,2562.9,2562.8,4.28106209]
[1751957620664,0.72705471,2562.9,2562.8,4.28106209]
[1751957624544,0.72705471,2562.9,2562.8,0.3791854]
[1751957624750,0.72705471,2562.9,2562.8,4.2811676]
[1751957626912,0.36354431,2562.9,2562.8,4.2811676]
[1751957627117,0.72761397,2562.9,2562.8,4.2811676]
[1751957629143,2.12316097,2562.9,2562.8,4.2811676]
[1751957629443,0.72761397,2562.9,2562.8,4.2811676]
[1751957629649,2.12316097,2562.9,2562.8,4.2811676]
[1751957630019,0.72824715,2562.9,2562.8,4.2811676]
[1751957630220,2.12379415,2562.9,2562.8,4.2811676]
[1751957631950,2.12379415,2562.9,2562.8,4.2821676]
[1751957632140,2.12579415,2562.9,2562.8,4.2821676]
[1751957634758,2.12579415,2562.9,2562.8,0.001]
[1751957634963,3.87027828,2562.9,2562.8,0.001]
[1751957635162,3.87027828,2562.9,2562.8,3.9029822]
[1751957635364,3.87027828,2562.9,2562.8,0.8161]
[1751957635521,3.87081829,2562.9,2562.8,0.8161]
[1751957635723,3.87081829,2562.9,2562.8,6.19703355]
[1751957635935,2.12633416,2562.9,2562.8,12.58713586]
[1751957636150,2.12633416,2562.9,2562.8,12.78153586]
[1751957636334,0.73078716,2562.9,2562.8,12.78153586]
[1751957637854,0.73078716,2562.9,2562.8,22.78153586]
[1751957638269,0.36724285,2562.9,2562.8,22.78153586]
[1751957638459,0.36731842,2562.9,2562.8,22.78153586]
[1751957638658,0.002,2562.9,2562.8,22.78153586]
[1751957639035,3.5092072,2563.7,2563.6,5.27006454]
[1751957639237,0.73057648,2563.7,2563.6,19.44526991]
[1751957639449,0.73057648,2563.7,2563.6,19.40626227]
[1751957639663,0.36528824,2563.7,2563.6,19.40626227]
[1751957640235,0.36528824,2563.7,2563.6,4.72006454]
[1751957640444,0.36528824,2563.7,2563.6,10.66706454]
[1751957640662,0.73051685,2563.7,2563.6,10.66706454]
[1751957641070,0.73052518,2563.7,2563.6,10.66706454]
[1751957641299,0.73052518,2563.7,2563.6,4.72006454]
[1751957641446,0.73052518,2563.7,2563.6,10.66706454]
[1751957643349,0.002,2564.0,2563.7,3.90055068]
[1751957643555,0.72962763,2563.9,2563.8,5.947]
[1751957644476,0.72962763,2563.9,2563.8,9.84746025]
[1751957644872,0.72962763,2563.9,2563.8,5.947]
[1751957645078,0.72962763,2563.9,2563.8,5.944]
[1751957646000,0.36481387,2563.9,2563.8,5.944]
[1751957646405,1.18601387,2563.9,2563.8,5.944]
[1751957646582,1.08001125,2563.9,2563.6,5.943]
[1751957648893,2.48010983,2563.9,2563.6,5.943]
[1751957649099,0.1944,2563.7,2563.6,5.943]
[1751957650304,0.1944,2563.7,2563.3,4.89534024]
[1751957650467,0.1944,2563.7,2563.4,5.942]
[1751957650672,0.1944,2563.7,2563.4,9.84305722]
[1751957651201,0.1944,2563.7,2563.1,1.447]
[1751957651202,0.8099,2563.6,2563.1,1.447]
[1751957651418,0.1944,2563.4,2563.3,5.942]
[1751957653304,0.1944,2563.4,2563.1,1.447]
[1751957653506,0.1944,2563.4,2563.2,5.943]
[1751957654806,0.1944,2563.4,2563.3,0.001]
[1751957656220,0.55919443,2563.4,2563.3,0.001]
[1751957656924,0.1944,2563.4,2563.3,0.001]
[1751957657517,0.55920763,2563.4,2563.3,0.001]
[1751957659111,0.91087965,2563.4,2563.3,0.001]
[1751957660649,0.55920763,2563.4,2563.3,0.001]
[1751957661626,0.88809179,2563.4,2563.3,0.001]
[1751957662124,1.19791714,2563.4,2563.3,0.001]
[1751957662528,12.5981789,2563.4,2563.3,0.001]
[1751957662728,13.3560789,2563.4,2563.3,0.001]
[1751957664246,2.5981789,2563.4,2563.3,0.001]
[1751957664404,0.88809179,2563.4,2563.3,0.001]
[1751957664609,2.28835355,2563.4,2563.3,0.001]
[1751957665110,0.88809179,2563.4,2563.3,0.001]
[1751957667434,0.55920763,2563.4,2563.3,0.001]
[1751957667740,0.8908302,2563.4,2563.3,0.001]
[1751957669219,1.5960737,2563.4,2563.3,0.001]
[1751957669519,3.92394266,2563.4,2563.3,0.001]
[1751957674644,3.92409256,2563.4,2563.3,0.001]
[1751957679378,3.92449179,2563.4,2563.3,0.001]
[1751957679966,3.22705699,2563.4,2563.3,0.001]
[1751957689082,3.56083905,2563.4,2563.3,0.001]
[1751957689385,3.92679259,2563.4,2563.3,0.001]
[1751957691798,7.82786148,2563.4,2563.3,0.001]
[1751957691968,3.92679259,2563.4,2563.3,0.001]
[1751957693298,6.26276732,2563.4,2563.3,0.001]
[1751957693993,6.26289836,2563.4,2563.3,0.001]
[1751957694999,10.16396725,2563.4,2563.3,0.001]
[1751957695482,20.16396725,2563.4,2563.3,0.001]
[1751957696796,20.1714082,2563.4,2563.3,0.001]
[1751957696993,26.01151051,2563.4,2563.3,0.001]
[1751957697197,3.90147217,2563.2,2562.8,0.001]
[1751957697494,3.90170318,2563.0,2562.8,0.001]
[1751957697698,2.29594034,2562.9,2562.8,0.001]
[1751957698799,6.19777029,2562.9,2562.8,0.001]
[1751957698996,4.05244582,2562.9,2562.8,0.001]
[1751957699586,19.8200682,2562.9,2562.8,0.001]
[1751957699791,21.71843553,2562.9,2562.8,0.001]
[1751957699971,31.71843553,2562.9,2562.8,0.001]
[1751957700172,29.96193005,2562.9,2562.8,0.001]
[1751957700366,33.1270123,2562.9,2562.8,0.001]
[1751957700581,13.9019822,2562.8,2562.7,0.0426927]
[1751957700788,22.25272907,2562.8,2562.7,0.0426927]
[1751957701003,23.02332907,2562.8,2562.7,0.0426927]
[1751957701513,26.53443132,2562.8,2562.7,0.0426927]
[1751957701697,14.70593902,2562.5,2562.4,0.001]
[1751957702007,28.67516684,2562.5,2562.4,0.001]
[1751957702209,32.32699237,2562.5,2562.4,0.001]
[1751957704206,30.57353417,2562.5,2562.4,0.001]
[1751957704579,32.91339188,2562.5,2562.4,0.001]
[1751957705003,36.91339188,2562.5,2562.4,0.001]
[1751957705305,38.36139188,2562.5,2562.4,0.001]
[1751957706311,38.35441969,2562.5,2562.4,0.001]
[1751957707607,38.90441969,2562.5,2562.4,0.001]
[1751957707812,36.57153417,2562.5,2562.4,0.001]
[1751957708401,40.08132073,2562.5,2562.4,0.001]
[1751957709108,36.57153417,2562.5,2562.4,0.001]
[1751957709579,5.20304362,2562.3,2562.2,0.0436927]
[1751957709889,41.34379633,2562.3,2562.2,0.0436927]
[1751957710093,41.35164783,2562.3,2562.2,0.0436927]
[1751957710301,41.3507188,2562.3,2562.2,0.0436927]
[1751957711010,41.3507188,2562.3,2562.1,0.001]
[1751957711011,15.39759594,2562.2,2562.1,0.001]
[1751957711307,25.73440148,2562.2,2562.1,0.001]
[1751957712280,32.4398272,2562.2,2562.1,0.001]
[1751957712593,37.82374381,2562.2,2562.1,0.001]
[1751957713809,37.82474381,2562.2,2562.1,0.001]
[1751957714021,37.82349495,2562.2,2562.1,0.001]
[1751957714226,36.07889604,2562.2,2562.1,0.001]
[1751957714406,38.3726706,2562.2,2562.1,0.001]
[1751957714591,4.45304828,2562.1,2561.7,0.0436927]
[1751957714793,23.51828194,2562.1,2561.7,0.0436927]
[1751957714992,21.77449053,2562.1,2561.7,0.0436927]
[1751957716223,29.15749053,2562.1,2561.7,0.0436927]
[1751957716607,30.35056832,2562.1,2561.7,0.0436927]
[1751957716938,12.45414225,2562.1,2561.8,0.8115]
[1751957717229,26.35719053,2562.1,2561.7,0.0436927]
[1751957718825,26.35688939,2562.1,2561.7,0.0436927]
[1751957719031,20.42188939,2562.1,2561.7,0.0436927]
[1751957719235,26.35688939,2562.1,2561.7,0.0436927]
[1751957719538,20.42188939,2562.1,2561.7,0.0436927]
[1751957719834,26.35688939,2562.1,2561.7,0.0436927]
[1751957720036,20.42188939,2562.1,2561.7,0.0436927]
[1751957720203,26.35688939,2562.1,2561.7,0.0436927]
[1751957721735,26.01219053,2562.1,2561.7,0.0436927]
[1751957723937,22.01219053,2562.1,2561.7,0.0436927]
[1751957724937,21.64903377,2562.1,2561.7,0.0436927]
[1751957725541,23.39211156,2562.1,2561.7,0.0436927]
[1751957726346,21.64903377,2562.1,2561.7,0.0436927]
[1751957726911,25.64903377,2562.1,2561.7,0.0436927]
[1751957727417,27.97639266,2562.1,2561.7,0.0436927]
[1751957728643,27.97739266,2562.1,2561.7,0.0436927]
[1751957729416,25.65003377,2562.1,2561.7,0.0436927]
[1751957729657,19.71403377,2562.1,2561.7,0.0436927]
[1751957729829,25.65003377,2562.1,2561.7,0.0436927]
[1751957731038,21.74698549,2562.1,2561.7,0.0436927]
[1751957731241,5.4016737,2562.1,2562.0,0.8133]
[1751957731441,3.93442794,2562.1,2562.0,0.8133]
[1751957731749,13.34972031,2562.1,2562.0,0.8133]
[1751957733932,14.06654307,2562.1,2562.0,0.8133]
[1751957734448,12.31289646,2562.1,2562.0,0.8133]
[1751957736260,12.31289646,2562.1,2562.0,1.28495637]
[1751957736261,4.06787636,2562.1,2562.0,1.28495637]
[1751957736568,10.00287636,2562.1,2562.0,1.28495637]
[1751957736761,8.24789646,2562.1,2562.0,1.28495637]
[1751957736932,8.24789646,2562.1,2562.0,0.8133]
[1751957737131,2.31289646,2562.1,2562.0,4.71650062]
[1751957737334,2.11849646,2562.1,2562.0,4.71650062]
[1751957737543,2.11849646,2562.1,2562.0,4.91090062]
[1751957737964,0.71682276,2562.1,2562.0,4.91090062]
[1751957738471,0.71682276,2562.1,2562.0,5.83135688]
[1751957738852,0.36554149,2562.1,2562.0,5.83135688]
[1751957739646,0.36554149,2562.1,2562.0,5.79232488]
[1751957740453,0.36502504,2562.4,2562.3,0.7604]
[1751957740656,0.72140841,2562.4,2562.3,0.7604]
[1751957741865,0.36502504,2562.4,2562.3,0.7604]
[1751957742062,0.71636675,2562.4,2562.3,0.7604]
[1751957742560,0.35134171,2562.4,2562.3,0.7604]
[1751957742766,0.71624806,2562.4,2562.3,0.7604]
[1751957743544,0.71624806,2562.4,2562.3,4.66314362]
[1751957743761,0.71624806,2562.4,2562.3,5.53918648]
[1751957744759,0.36491031,2562.4,2562.3,4.66314362]
[1751957745161,0.36491031,2562.4,2562.3,0.7604]
[1751957745563,0.3647391,2562.4,2562.3,0.7604]
[1751957751975,0.3647391,2562.4,2562.1,4.09737752]
[1751957752169,0.3647391,2562.3,2562.1,4.89387752]
[1751957752373,0.3647391,2562.2,2562.1,4.89387752]
[1751957752669,0.3647391,2562.2,2562.1,0.1944]
[1751957752869,0.3647391,2562.2,2562.1,4.09743709]
[1751957753070,0.3647391,2562.4,2562.1,4.09743709]
[1751957753273,0.3647391,2562.3,2562.1,4.09743709]
[1751957753475,0.3647391,2562.2,2562.1,4.09743709]
[1751957754946,0.3647391,2562.4,2562.1,4.09743709]
[1751957755147,0.3647391,2562.3,2562.1,4.09743709]
[1751957755359,0.3647391,2562.2,2562.1,4.09743709]
[1751957755557,0.3648187,2562.4,2562.2,4.66214054]
[1751957755848,0.3648091,2562.3,2562.2,4.66214054]
[1751957761082,0.3648091,2562.3,2562.2,4.70116949]
[1751957764287,0.3648091,2562.3,2562.2,4.66214054]
[1751957766762,0.71758337,2562.3,2562.2,4.66214054]
[1751957767283,2.11870681,2562.3,2562.2,4.66214054]
[1751957767483,0.71758337,2562.3,2562.2,4.66214054]
[1751957767783,0.3648091,2562.3,2562.2,4.66214054]
[1751957768277,0.71769397,2562.3,2562.2,4.66214054]
[1751957769281,2.1233635,2562.3,2562.2,4.66214054]
[1751957769460,0.71769397,2562.3,2562.2,4.66214054]
[1751957770167,2.1233635,2562.3,2562.2,4.66214054]
[1751957770364,0.71769397,2562.3,2562.2,4.66214054]
[1751957771061,2.1233635,2562.3,2562.2,4.66214054]
[1751957771260,0.71769397,2562.3,2562.2,4.66214054]
[1751957772683,2.1233635,2562.3,2562.2,4.66214054]
[1751957772900,0.71769397,2562.3,2562.2,0.7593]
[1751957773079,0.7598,2562.2,2562.0,0.001]
[1751957773258,2.3177635,2562.1,2562.0,0.001]
[1751957773806,2.31980254,2562.1,2562.0,0.001]
[1751957774265,2.31980425,2562.1,2562.0,0.001]
[1751957775387,12.31980425,2562.1,2562.0,0.001]
[1751957775693,14.07478415,2562.1,2562.0,0.001]
[1751957776072,12.31980425,2562.1,2562.0,0.001]
[1751957776275,14.07478415,2562.1,2562.0,0.001]
[1751957777274,12.31980425,2562.1,2562.0,0.001]
[1751957779989,18.25280425,2562.1,2562.0,0.001]
[1751957781787,22.15585253,2562.1,2562.0,0.001]
[1751957782279,23.91083243,2562.1,2562.0,0.001]
[1751957782477,23.91300376,2562.1,2562.0,0.001]
[1751957782794,30.54480607,2562.1,2562.0,0.001]
[1751957784264,30.54277077,2562.1,2562.0,0.001]
[1751957784682,30.54477077,2562.1,2562.0,0.001]
[1751957784971,32.79182617,2562.1,2562.0,0.001]
[1751957788295,32.79362721,2562.1,2562.0,0.001]
[1751957790306,35.13198145,2562.1,2562.0,0.001]
[1751957791119,35.1332087,2562.1,2562.0,0.001]
[1751957793598,13.90350534,2561.8,2561.7,0.0436927]
[1751957793920,33.59559808,2561.8,2561.7,0.0436927]
[1751957794120,32.42141773,2561.8,2561.7,0.0436927]
[1751957794491,30.08594104,2561.8,2561.7,0.0436927]
[1751957795102,34.08594104,2561.8,2561.7,0.0436927]
[1751957796914,34.0833299,2561.8,2561.7,0.0436927]
[1751957797902,37.59311646,2561.8,2561.7,0.0436927]
[1751957798116,34.0833299,2561.8,2561.7,0.0436927]
[1751957798335,37.58386765,2561.8,2561.7,0.0436927]
[1751957798646,37.58386765,2561.8,2561.6,0.001]
[1751957798647,14.85465772,2561.7,2561.6,0.001]
[1751957798807,24.48391294,2561.7,2561.6,0.001]
[1751957799207,31.86491294,2561.7,2561.6,0.001]
[1751957802949,13.90411493,2561.4,2561.2,0.0426927]
[1751957803119,37.97873824,2561.4,2561.2,0.0426927]
[1751957803747,14.90716736,2561.3,2561.2,0.0426927]
[1751957803914,17.03528961,2561.3,2561.2,0.0426927]
[1751957804258,21.03528961,2561.3,2561.2,0.0426927]
[1751957804419,30.75163073,2561.3,2561.2,0.0426927]
[1751957804614,31.1977321,2561.3,2561.2,0.0426927]
[1751957805447,30.3900321,2561.3,2561.2,0.0426927]
[1751957806431,31.1790321,2561.3,2561.2,0.0426927]
[1751957811257,31.1790321,2561.3,2561.1,0.001]
[1751957811258,13.9044198,2561.2,2561.1,0.001]
[1751957811460,27.73422211,2561.2,2561.1,0.001]
[1751957814033,29.76480231,2561.2,2561.1,0.001]
[1751957814934,33.66922211,2561.2,2561.1,0.001]
[1751957817175,33.66936409,2561.2,2561.1,0.001]
[1751957817339,29.76494429,2561.2,2561.1,0.001]
[1751957817541,33.66936409,2561.2,2561.1,0.001]
[1751957817872,29.76494429,2561.2,2561.1,0.001]
[1751957818430,32.09928541,2561.2,2561.1,0.001]
[1751957818837,36.00370521,2561.2,2561.1,0.001]
[1751957821942,35.28111051,2561.2,2561.1,0.001]
[1751957822142,36.01199589,2561.2,2561.1,0.001]
[1751957822370,33.67765477,2561.2,2561.1,0.001]
[1751957822563,4.09977225,2561.1,2561.0,0.001]
[1751957822758,10.60720239,2561.1,2561.0,0.001]
[1751957824062,14.60720239,2561.1,2561.0,0.001]
[1751957824771,18.95787601,2561.1,2561.0,0.001]
[1751957824959,16.61742853,2561.1,2561.0,0.001]
[1751957825376,17.43142853,2561.1,2561.0,0.001]
[1751957825569,20.93454953,2561.1,2561.0,0.001]
[1751957826189,20.93454953,2561.1,2560.7,0.0426927]
[1751957826190,13.90472471,2561.0,2560.7,0.0426927]
[1751957826495,1.75699842,2560.8,2560.7,0.0426927]
[1751957826793,3.89355333,2560.8,2560.7,0.0426927]
[1751957827360,2.13655491,2560.8,2560.7,0.0426927]
[1751957828710,6.04158458,2560.8,2560.7,0.0426927]
[1751957828994,11.88168689,2560.8,2560.7,0.0426927]
[1751957829196,14.67045282,2560.8,2560.7,0.0426927]
[1751957831000,23.14698826,2560.8,2560.7,0.0426927]
[1751957831598,32.58810926,2560.8,2560.7,0.0426927]
[1751957832389,13.90529213,2560.7,2560.2,0.0436927]
[1751957832590,0.1952,2560.4,2560.2,0.0436927]
[1751957832794,8.07555491,2560.3,2560.2,0.0436927]
[1751957833001,2.13655491,2560.3,2560.2,0.8455927]
[1751957833166,0.73088538,2560.3,2560.2,4.75153754]
[1751957833380,2.13655491,2560.3,2560.2,4.75153754]
[1751957833996,0.73088538,2560.3,2560.2,4.75153754]
[1751957834685,0.73088538,2560.3,2560.2,4.94673754]
[1751957836804,0.73165009,2560.3,2560.2,4.94673754]
[1751957837617,2.13731962,2560.3,2560.2,4.94673754]
[1751957838212,0.73165009,2560.3,2560.2,1.0407927]
[1751957838623,2.13731962,2560.3,2560.2,0.8455927]
[1751957838813,0.73165009,2560.3,2560.2,0.8455927]
[1751957839593,0.73162035,2560.3,2560.2,0.8455927]
[1751957840027,0.73162035,2560.3,2560.2,4.75153754]
[1751957840194,0.73162035,2560.3,2560.2,5.66111679]
[1751957841421,2.13728988,2560.3,2560.2,5.89537623]
[1751957841602,0.73162035,2560.3,2560.2,5.85631679]
[1751957842134,0.73162035,2560.3,2560.2,5.89537623]
[1751957842831,0.36617766,2560.3,2560.2,5.89537623]
[1751957843035,0.36617766,2560.3,2560.2,5.85631679]
[1751957845441,1.40585162,2560.6,2560.5,3.9054872]
[1751957845639,0.73225716,2560.6,2560.5,4.1006872]
[1751957845840,2.13810878,2560.6,2560.5,4.1006872]
[1751957846208,0.73225716,2560.6,2560.5,4.1006872]
[1751957846430,2.13810878,2560.6,2560.5,4.1006872]
[1751957846737,0.73225716,2560.6,2560.5,4.1006872]
[1751957846944,2.13810878,2560.6,2560.5,4.1006872]
[1751957847439,0.73225716,2560.6,2560.5,4.1006872]
[1751957847641,2.13810878,2560.6,2560.5,4.1006872]
[1751957848142,0.73225716,2560.6,2560.5,4.1006872]
[1751957848340,2.13810878,2560.6,2560.5,4.1006872]
[1751957848531,2.13810878,2560.6,2560.5,4.9018872]
[1751957848735,0.73225716,2560.6,2560.5,4.9018872]
[1751957848945,2.13810878,2560.6,2560.5,4.9018872]
[1751957849231,0.73225716,2560.6,2560.5,4.9018872]
[1751957849546,2.13810878,2560.6,2560.5,4.9018872]
[1751957849941,0.73225716,2560.6,2560.5,4.9018872]
[1751957850249,2.13810878,2560.6,2560.5,4.9018872]
[1751957850626,0.73425716,2560.6,2560.5,4.9018872]
[1751957850825,2.14010878,2560.6,2560.5,4.9018872]
[1751957851545,0.73425716,2560.6,2560.5,0.9964]
[1751957851861,2.14010878,2560.6,2560.5,4.9018872]
[1751957852173,0.73425716,2560.6,2560.5,0.9964]
[1751957852331,2.14010878,2560.6,2560.5,0.9964]
[1751957852530,0.73425716,2560.6,2560.5,0.9964]
[1751957852830,2.14010878,2560.6,2560.5,0.9964]
[1751957853037,1.99330878,2560.6,2560.5,0.9964]
[1751957853325,0.57035716,2560.6,2560.5,0.9964]
[1751957853530,1.97620878,2560.6,2560.5,4.9018872]
[1751957853731,0.57035716,2560.6,2560.5,4.9018872]
[1751957854031,1.77401345,2560.6,2560.5,4.9018872]
[1751957854226,0.36816183,2560.6,2560.5,4.9018872]
[1751957854444,1.77401345,2560.6,2560.5,4.9018872]
[1751957854757,0.36816183,2560.6,2560.5,4.9018872]
[1751957854937,1.77401345,2560.6,2560.5,4.9018872]
[1751957855139,0.36816183,2560.6,2560.5,4.9018872]
[1751957855348,1.77401345,2560.6,2560.5,4.9018872]
[1751957855546,0.36816183,2560.6,2560.5,4.9018872]
[1751957855752,1.77401345,2560.6,2560.5,6.37663971]
[1751957855955,0.36816183,2560.6,2560.5,6.37663971]
[1751957856163,1.77401345,2560.6,2560.5,6.37663971]
[1751957856361,0.36816183,2560.6,2560.5,6.37663971]
[1751957856558,1.77401345,2560.6,2560.5,6.37663971]
[1751957856868,0.36816183,2560.6,2560.5,6.41569458]
[1751957859772,0.36816183,2560.6,2560.5,6.37663971]
[1751957862847,0.36816183,2560.6,2560.5,6.41569458]
[1751957863264,0.002,2560.6,2560.5,12.80579689]
[1751957863474,0.002,2560.6,2560.5,12.76674202]
[1751957872584,0.002,2560.6,2560.5,12.76774202]
[1751957873079,0.002,2560.6,2560.5,6.18243971]
[1751957873382,0.002,2560.6,2560.5,12.15959458]
[1751957873577,0.002,2560.6,2560.5,12.12053971]
[1751957873780,0.002,2560.6,2560.5,12.67053971]
[1751957879162,0.7264597,2561.4,2561.3,3.90426736]
[1751957879363,0.7264597,2561.4,2561.3,9.84426736]
[1751957880172,0.72646614,2561.4,2561.3,9.84426736]
[1751957882091,0.72647026,2561.4,2561.3,9.84426736]
[1751957882399,0.36527028,2561.4,2561.3,9.84426736]
[1751957883197,0.36527028,2561.4,2561.3,10.03946736]
[1751957883497,0.36525537,2561.4,2561.3,10.03946736]
[1751957884089,0.36525537,2561.4,2561.3,6.1352]
[1751957884501,0.72665126,2561.4,2561.3,6.1352]
[1751957884995,0.72665126,2561.4,2561.3,0.1952]
[1751957885196,0.72665126,2561.4,2561.3,6.1322]
[1751957888514,1.51655126,2561.4,2561.3,6.1312]
[1751957889019,1.51655126,2561.4,2561.3,6.1302]
[1751957890213,2.9192066,2561.4,2561.3,6.1302]
[1751957890412,1.51655126,2561.4,2561.3,6.1302]
[1751957890720,1.51655126,2561.4,2561.3,0.1952]
[1751957891124,1.51655126,2561.4,2561.3,5.934]
[1751957893626,2.9192066,2561.4,2561.3,5.934]
[1751957894606,2.91993577,2561.4,2561.3,5.934]
[1751957895227,2.92193577,2561.4,2561.3,5.934]
[1751957900731,2.92193577,2561.4,2561.1,4.09968263]
[1751957900907,0.72738043,2561.3,2561.2,5.934]
[1751957901854,0.72738043,2561.3,2561.2,9.8384198]
[1751957902222,0.72738043,2561.3,2561.2,5.934]
[1751957902951,0.72738043,2561.3,2561.2,9.8384198]
[1751957903259,2.13003577,2561.3,2561.2,5.934]